Cogmind - Beta 15 @@@ ROGUE MODE // 2025.08.15 @ 15:59:13 Player: eVander Result: Destroyed by G-47 Trooper with Particle Gun Performance ------------- Evolutions (0) 0 Regions Visited (1) 200 Robots Destroyed (7) 35 Value Destroyed (137) 137 Prototype IDs (0) 0 Alien Tech Used (0) 0 Bonus (0) 0 TOTAL SCORE: 372 Bonus ------- None Cogmind --------- Core Integrity 0/250 Matter 300/300 Energy 99/100 System Corruption 0% Temperature Cool (9) Movement Core (350) Ox6 Location -10/Materials Parts ------- > --- POWER (1) -------- (None) > --- PROPULSION (2) --- (None) > --- UTILITY (2) ------ Large Storage Unit > --- WEAPON (2) ------- (None) > --- INVENTORY (15) --- Small Storage Unit Large Storage Unit Peak State ------------ > --- POWER ------------ Ion Engine > --- PROPULSION ------- Wheel Wheel > --- UTILITY ---------- Large Storage Unit Core Shielding > --- WEAPON ----------- EM Pulse Gun Small Laser > --- INVENTORY -------- Small Storage Unit Large Storage Unit [Rating: 7] Favorites ----------- Power Ion Engine Engine Ion Engine Propulsion Wheel Wheel Wheel Flight Unit Flight Unit Utility Large Storage Unit Storage Large Storage Unit Protection Core Shielding Weapon Small Laser Energy Gun Small Laser Build | -11 -10 ------- Run | Yrd Mat Slots Evolved . | . . Power . | . . Propulsion . | . . Utility . | . . Weapon . | . . Parts Attached 10 | 6 4 Power 2 | 1 1 Engine 2 | 1 1 Core . | . . Reactor . | . . Propulsion 3 | 2 1 Treads . | . . Leg . | . . Wheel 2 | 2 . Hover . | . . Flight 1 | . 1 Utility 3 | 1 2 Device . | . . Storage 2 | 1 1 Processor . | . . Hackware . | . . Protection 1 | . 1 Artifact . | . . Weapon 2 | 2 . Energy Gun 2 | 2 . Energy Cannon . | . . Ballistic Gun . | . . Ballistic Cannon . | . . Launcher . | . . Special Weapon . | . . Impact Weapon . | . . Slashing Weapon . | . . Piercing Weapon . | . . Special Melee Weapon . | . . Unidentified Prototypes . | . . Parts Lost 8 | . 8 Power 2 | . 2 Propulsion 3 | . 3 Utility 1 | . 1 Weapon 2 | . 2 Highest Loss Streak 4 | . 4 To Critical Strikes . | . . Average Backups 1 | . 1 Power . | . . Propulsion . | . . Utility 1 | . 1 Weapon . | . . Tool/Special . | . . Unused Backups 1 | . 1 Power . | . . Propulsion . | . . Utility 1 | . 1 Weapon . | . . Tool/Special . | . . Average Slot Usage (%) 82 | . 82 Engine 12 | . 12 Wheel 20 | . 20 Flight 1 | . 1 Storage 14 | . 14 Protection 11 | . 11 Energy Gun 21 | . 21 Peak Build Rating 7 | 6 7 Average Rating 5 | 3 5 On Entrance 3 | . 6 Naked Turns . | . . Heaviest Build 29 | 13 29 Greatest Support 20 | 20 20 Greatest Overweight (x) 7 | . 7 Average Overweight (x) 1 | . 1 Largest Inventory Capacity 15 | 8 15 Average Capacity 14 | 6 14 Most Carried 5 | 5 4 Average Carried 1 | 1 2 Final Capacity 15 | 8 15 Final Carried 2 | . 2 Class Distribution -------------------- 100% | Mutant Dominant Class ---------------- Mutant | -10/Materials Resources | -11 -10 ----------- Run | Yrd Mat Matter Collected 275 | 240 35 Remotely . | . . Salvage Created 204 | . 204 Parts 13 | . 13 Haulers Intercepted . | . . Recyclers Shooed 1 | . 1 Parts Field Recycled . | . . Retrieved Matter . | . . Parts Self-Destructed . | . . Prevented . | . . Kills | -11 -10 ------- Run | Yrd Mat Combat Hostiles Destroyed 6 | . 6 Guns 5 | . 5 AOE 1 | . 1 Classes Destroyed 3 | . 3 Builder 1 | . 1 Swarmer 3 | . 3 Grunt 3 | . 3 Best Kill Streak 4 | . 4 Combat Bots Only 4 | . 4 Max Kills in Single Turn 2 | . 2 Gunslinging . | . . Exploded 1 | . 1 Melee . | . . Uniques/NPCs Destroyed . | . . Combat | -11 -10 -------- Run | Yrd Mat Hostile Shots Fired 81 | . 81 Missed 14 | . 14 Hits 67 | . 67 Projectile 67 | . 67 Critical Strikes 2 | . 2 Actively Blocked 1 | . 1 Damage Taken 807 | . 807 Core 251 | . 251 Absorbed by Shields . | . . Redirected to Shielding 50 | . 50 Core Remaining (%) 100 | 100 . Volleys Fired 24 | . 24 Largest 2 | . 2 Hottest 80 | . 80 Shots Fired 31 | . 31 Gun 31 | . 31 Cannon . | . . Launcher . | . . Special . | . . Kinetic . | . . Thermal 24 | . 24 Explosive . | . . Electromagnetic 7 | . 7 Robot Hit Streak 3 | . 3 Robot Miss Streak 3 | . 3 Penetration Max . | . . Secondary Targets 1 | . 1 Max Gunslinging Chain 1 | . 1 Shots Hit Robots 17 | . 17 Core Hits 10 | . 10 Critical Kills . | . . Critical Parts Destroyed . | . . Critical Strikes . | . . Melee Attacks . | . . Impact . | . . Slashing . | . . Piercing . | . . Sneak Attacks . | . . Combat Hostiles . | . . Follow-up Attacks . | . . Damage Inflicted 308 | . 308 Guns 201 | . 201 Cannons . | . . Explosions 103 | . 103 Melee . | . . Ramming 4 | . 4 Kinetic . | . . Thermal 241 | . 241 Explosive . | . . Electromagnetic 63 | . 63 Impact . | . . Slashing . | . . Piercing . | . . Highest Corruption . | . . Average Corruption . | . . Corruption Purged . | . . Corruption Blocked . | . . Overload Shots . | . . Overflow Damage . | . . Projectiles . | . . Explosions . | . . Melee . | . . Knockbacks . | . . Impact . | . . Kinetic . | . . Secondary . | . . Self-Inflicted Damage 32 | . 32 Shots 1 | . 1 Rammed 5 | . 5 Targets Rammed 5 | . 5 Kicked . | . . Crushed . | . . Highest Temperature 126 | . 126 Average Temperature 53 | . 53 Received Heat Transfer 366 | . 366 Siege Activations . | . . Martial Activations . | . . Shielding Activations . | . . Robots Disrupted . | . . Combat Hostiles . | . . Robots Corrupted . | . . Combat Hostiles . | . . Parts Fried . | . . Impact Corruptions . | . . Robots Melted . | . . Combat Hostiles . | . . Parts Melted 1 | . 1 Heat Transferred 450 | . 450 Parts Sabotaged . | . . Parts Stolen . | . . Parts Stripped . | . . Power Chain Reactions 1 | . 1 Alert | -11 -10 ------- Run | Yrd Mat Maximum Alert Level . | . . Low Security (%) 100 | 100 100 Level 1 . | . . Level 2 . | . . Level 3 . | . . Level 4 . | . . Level 5 . | . . High Security . | . . Max Security . | . . Peak Influence 115 | . 115 Initial . | . . Average 35 | . 38 Influence Increases 255 | . 255 Destroy 0b10 Robot/C 120 | . 120 Destroy 0b10 Robot/NC 5 | . 5 Destroy Leader 20 | . 20 Successful Hack 2 | . 2 Destroy Structure 3 | . 3 Lose Combat Pursuer 105 | . 105 Influence Decreases 212 | . 212 Time Decay 132 | . 132 Lost Part 80 | . 80 Squads Dispatched 1 | . 1 Investigation 1 | . 1 Extermination . | . . Reinforcement . | . . Assault . | . . Garrison . | . . Intercept . | . . Searches Triggered . | . . Construction Impeded . | . . Haulers Reinforced . | . . Active Scanning Responses . | . . Cargo Convoy Interrupts . | . . Stealth | -11 -10 --------- Run | Yrd Mat Distress Signals . | . . Communications Jammed . | . . Distress Signals . | . . Times Spotted 14 | . 14 Peak Tracking Total 5 | . 5 Tactical Retreats 3 | . 3 Traps | -11 -10 ------- Run | Yrd Mat Traps Triggered . | . . Indirectly . | . . Trap Hack Attempts . | . . Triggered . | . . Disarmed . | . . Reprogrammed . | . . Reused . | . . Traps Extracted . | . . Installed . | . . Triggered . | . . Machines | -11 -10 ---------- Run | Yrd Mat Machines Disabled . | . . Max in Single Turn . | . . Machines Repaired . | . . Machines Dismantled . | . . Machines Sabotaged . | . . Overloaded Fab Kills . | . . Hacking | -11 -10 --------- Run | Yrd Mat Machines Accessed 2 | . 2 Terminals 2 | . 2 Fabricators . | . . Repair Stations . | . . Recycling Units . | . . Scanalyzers . | . . Garrison Access . | . . Total Hacks 5 | . 5 Successful 2 | . 2 Failed 3 | . 3 Catastrophic 1 | . 1 Database Lockouts . | . . Manual 3 | . 3 Terminals 5 | . 5 Fabricators . | . . Repair Stations . | . . Recycling Units . | . . Scanalyzers . | . . Garrison Access . | . . Terminal Hacks 2 | . 2 Record 2 | . 2 Fabricator Hacks . | . . Repair Station Hacks . | . . Recycling Unit Hacks . | . . Scanalyzer . | . . Garrison Access Hacks . | . . Unauthorized Hacks . | . . Terminals . | . . Fabricators . | . . Repair Stations . | . . Recycling Units . | . . Scanalyzers . | . . Garrison Access . | . . Data Cores Recovered . | . . Used . | . . Hacking Detections 2 | . 2 Full Trace Events 1 | . 1 Feedback Events . | . . Feedback Blocked . | . . Robot Schematics Acquired . | . . Robots Built . | . . Authchips . | . . Time . | . . Total Robot Build Rating . | . . Part Schematics Acquired . | . . Parts Built . | . . Authchips . | . . Time . | . . Total Part Build Rating . | . . Parts Repaired . | . . Time . | . . Parts Recycled . | . . Recycled Matter . | . . Retrieved Matter . | . . Retrieved Components . | . . Parts Scanalyzed . | . . Part Schematics Acquired . | . . Parts Damaged . | . . Bothacking | -11 -10 ------------ Run | Yrd Mat Used RIF Installer . | . . Robots Hacked . | . . Non-combat . | . . Combat . | . . Robot Hacks Applied . | . . Relay Couplers Released . | . . Fabnet Peak Effective % . | . . Robots Rewired . | . . Allies Hacked . | . . Hacks Repelled . | . . Allies | -11 -10 -------- Run | Yrd Mat Total Allies . | . . Largest Group . | . . Highest-Rated Group . | . . Highest-Rated Ally . | . . Total Orders . | . . Ally Attacks . | . . Total Damage . | . . Kills . | . . Allies Corrupted . | . . Allies Melted . | . . Intel | -11 -10 ------- Run | Yrd Mat Active Infowar (turns) . | . . Robot Analysis Total . | . . Derelict Logs Recovered . | . . Drone Launches . | . . Drone Recoveries . | . . Exploration | -11 -10 ------------- Run | Yrd Mat Turns Passed 539 | 48 491 Spaces Moved 378 | 53 325 Core 29 | 20 9 Treads . | . . Legs . | . . Wheels 341 | 33 308 Hover . | . . Flight 8 | . 8 Fastest Speed 50 | 50 80 Average Speed 104 | 68 110 Slowest Speed 440 | 80 440 Overloaded Moves . | . . Propulsion Burnouts . | . . Robots Hopped . | . . Potential Cave-ins . | . . Cave-ins Triggered . | . . Exploration Rate (%) 15 | 4 26 Regions Visited 1 Branch Regions . Pre-discovered Areas . | . . Known Exits Taken . | . . Unknown Exits Taken 1 | 1 . Scrap Searched . | . . Spaces Dug . | . . Terrain Destroyed 3 | . 3 Melee . | . . Projectile . | . . AOE 3 | . 3 Terrain Rammed . | . . Walls Destroyed . | . . Machines Disabled . | . . Actions | -11 -10 --------- Run | Yrd Mat Total 476 | 64 412 Wait 49 | . 49 Move 377 | 52 325 Hop . | . . Pick Up 11 | 6 5 Fast Attach . | . . Attach 9 | 6 3 Detach . | . . Swap 1 | . 1 Drop . | . . Fire 24 | . 24 Melee . | . . Ram 5 | . 5 Kick . | . . Crush . | . . Escape Stasis . | . . Rewire . | . . Trap . | . . Miscellaneous . | . . Route ------- -11/Scrapyard -10/Materials (discovered 1 exit: [*Mat]) History --------- Turn | Location | Event 7 | -11/Scrapyard | Discovered new exit (range 15) 49 | -11/Scrapyard | Entered Materials 179 | -10/Materials | Discovered new exit (range 15) 307 | -10/Materials | Build established: Mutant 461 | -10/Materials | Lost 4 parts (1p2n1w) 489 | -10/Materials | Core integrity fell below 50% 523 | -10/Materials | Core integrity fell below 20% 540 | -10/Materials | Destroyed by G-47 Trooper with Particle Gun Last Messages --------------- 00458_ R-06 Scavenger collects Flight Unit. 00469_ Sml. Laser destroyed. 00476_ K-01 Serf collects debris. 00478_ Acquired Flight Unit. 00480_ K-01 Serf collects debris. 00481_ Slammed into G-47 Trooper. 00485_ Critical hit (Burn: +37). 00485_ Acquired 15 matter. 00510_ Lgt. Ion Engine destroyed. 00512_ Atomic Centrifuge disabled. 00520_ Slammed into G-47 Trooper. 00524_ Atomic Centrifuge disabled. 00525_ K-01 Serf collects debris. 00525_ Slammed into G-47 Trooper. 00528_ K-01 Serf collects debris. 00528_ Flight Unit destroyed. 00529_ Slammed into G-47 Trooper. 00534_ K-01 Serf cleans the Atomic Centrifuge. 00536_ Slammed into G-47 Trooper. 00540_ Core Shielding destroyed. Map ----- +----------------------------------------------------+ | ???????????# T #???? | | ???????????# #???? | | ???????????# #######+### #???? | | ???????????# #??# #######???? | | ???????????# #??# #?????????? | | ???????????# #??# """ #?????????? | | ???????????# #??# """ #?????????? | | ???????????# #??# """ #?????????? | | ??????????## ##?# #?????????? | | ??????????# ####+############??? | | ??????????# ^! #??? | | ??????????# % % ######## #??? | | ??????????# =%% #?###### #??? | | ??????????# ###[## #?# # #??? | | ????????#####+######## #?# # #??? | | ????????# #??# #?# # #??? | | ????????# #??# #?# # #??? | | ????????# ! #??# #?# # #??? | | ????????# #### ### # #??? | | ????????# """ """ ## # #??? | | ????????# """ """ ## # # #??? | | ????????# """ """ ## = !###### #??? | | ????????# ## %=#??? | | ????????############ %%###### #??? | | ???????????????#######+######## #??? | | ???????????????# %@ ## #??? | | ???????????????# """ """%g"" ## #??? | | ???????????????# """ "" """ ## #??? | | ???????????????# """ """ """ ## #??? | | ???????????????# k ## #??? | | ???????????????# ## #??? | | ??????####+##############/##### #??? | | ???? #??#r#???# #??? | | ???? #### ##### #??? | | ???? #??? | | ???????### ################ ##?? | | ??????????????????????????# #?? | | ??????????????????????????#! !#?? | | ??????????????????????????##! !##?? | | ???????????????????????????######??? | | ???????????????????????????????????? | | | | | | | | | | | | | | | | | | | +----------------------------------------------------+ Best States ------------- Heat Dissipation 25 Energy Generation 10 Energy Capacity 250 Matter Stores 300 Matter Capacity 300 Sight Range 16 Terrain Scan Density 10 Core Shielding 20 Evasion (%) 44 Item Schematics ----------------- None Robot Schematics ------------------ None Fabricated ------------ Nothing Repaired ---------- Nothing Alien Tech Used ----------------- None Achievements -------------- None Challenges ------------ None Game ------ Seed BoltNodeKinecellerator Manual? 0 Play Time 00:08:33 Cumulative 9.0 hours Start 2025.08.15 @ 15:46:49 End 2025.08.15 @ 15:59:13 Sessions 1 Manual Loads 0 Difficulty Rogue Special Mode None Game No. 28 Rogue 22 Adventurer 6 Explorer 0 Win Type - Total 0 Types 0/0/0/0/0/0/0/0/0/0 Lore% 6 Gallery% 15 Achievement% 16 Wizard Run 0 Options --------- Layout 0 ASCII 0 Keyboard 1 Movement Numpad Keybinds 0 Fullscreen 1 Font 24/Proggy Map View 76x50 Zoom Use 0% Tactical HUD 1 Map Filters NONE Filters NONE Steam 1 RUN: 46c8f9fe-708d-4e1c-9ba3-15904a613bc7